fUST/lending_fUST_20240803
["ID","MTS","AMOUNT","RATE_DAILY","PERIOD"]
[333931511,1722633048190,-500.0,0.00015342,2]
[333931512,1722633048199,-500.0,0.00015342,2]
[333931513,1722633048302,-500.0,0.00015342,2]
[333931514,1722633048312,-500.0,0.00015342,2]
[333931515,1722633048322,-500.0,0.00015342,2]
[333931516,1722633048331,-584.1,0.00015342,2]
[333931517,1722633048341,-500.0,0.00015342,2]
[333931518,1722633048351,-500.0,0.00015342,2]
[333931519,1722633048361,-151.0,0.00015342,2]
[333931520,1722633048371,-500.0,0.00015342,2]
[333931521,1722633048380,-500.0,0.00015342,2]
[333931522,1722633048390,-725.53,0.00015342,2]
[333931523,1722633048400,-500.0,0.00015342,2]
[333931524,1722633048410,-151.0,0.00015342,2]
[333931525,1722633048420,-500.0,0.00015342,2]
[333931526,1722633048430,-500.0,0.00015342,2]
[333931527,1722633048440,-3453.04,0.00015342,2]
[333931528,1722633048451,-1646.77,0.00015342,2]
[333931529,1722633048461,-500.0,0.00015342,2]
[333931530,1722633048471,-579.57,0.00015342,2]
[333931531,1722633048482,-582.4,0.00015342,2]
[333931532,1722633048492,-500.0,0.00015342,2]
[333931533,1722633048504,-528.32,0.00015342,2]
[333931534,1722633048514,-835.9,0.00015342,2]
[333931535,1722633048524,-585.79,0.00015342,2]
[333931536,1722633048534,-1838.53,0.00015342,2]
[333931537,1722633048544,-2382.64,0.00015342,2]
[333931538,1722633048554,-500.0,0.00015342,2]
[333931539,1722633048565,-500.0,0.00015342,2]
[333931540,1722633048575,-500.0,0.00015342,2]
[333931541,1722633048585,-500.0,0.00015342,2]
[333931542,1722633048594,-898.97,0.00015342,2]
[333931543,1722633048603,-500.0,0.00015342,2]
[333931544,1722633048613,-523.51,0.00015342,2]
[333931545,1722633048623,-500.0,0.00015342,2]
[333931546,1722633048633,-552.87,0.00015342,2]
[333931547,1722633048643,-500.0,0.00015342,2]
[333931548,1722633048653,-1426.15,0.00015342,2]
[333931549,1722633048662,-561.77,0.00015342,2]
[333931550,1722633048673,-1079.83,0.00015342,2]
[333931551,1722633048682,-500.0,0.00015342,2]
[333931552,1722633048692,-500.0,0.00015342,2]
[333931553,1722633048702,-500.0,0.00015342,2]
[333931554,1722633048711,-500.0,0.00015342,2]
[333931555,1722633048721,-500.0,0.00015342,2]
[333931556,1722633048730,-500.0,0.00015342,2]
[333931557,1722633048740,-2704.57,0.00015342,2]
[333931558,1722633048754,-296.98827779,0.00015342,2]
[333931559,1722633048770,-809.4,0.00015342,2]
[333931560,1722633048780,-685.56,0.00015342,2]
[333931561,1722633048790,-776.06,0.00015342,2]
[333931562,1722633048799,-511.69,0.00015342,2]
[333931563,1722633048808,-500.0,0.00015342,2]
[333931564,1722633048818,-500.0,0.00015342,2]
[333931565,1722633048828,-558.15,0.00015342,2]
[333931566,1722633048837,-965.4,0.00015342,2]
[333931567,1722633048847,-500.0,0.00015342,2]
[333931568,1722633048857,-505.24,0.00015342,2]
[333931569,1722633048867,-500.0,0.00015342,2]
[333931570,1722633048876,-715.48,0.00015342,2]
[333931571,1722633048886,-688.51,0.00015342,2]
[333931572,1722633048896,-1090.41,0.00015342,2]
[333931573,1722633048906,-500.0,0.00015342,2]
[333931574,1722633048916,-903.04,0.00015342,2]
[333931575,1722633048925,-500.0,0.00015342,2]
[333931576,1722633048935,-500.0,0.00015342,2]
[333931577,1722633048945,-284.0,0.00015413,2]
[333931578,1722633048954,-150.112233,0.000155,2]
[333931579,1722633048964,-151.0,0.00015606,2]
[333931580,1722633048973,-151.0,0.00015606,2]
[333931581,1722633048982,-218.510258,0.00015606,2]
[333931582,1722633048992,-218.510258,0.00015606,2]
[333931583,1722633049005,-151.0,0.00015606,2]
[333931584,1722633049015,-151.0,0.00015606,2]
[333931585,1722633049024,-500.0,0.00015616,2]
[333931586,1722633049037,-342.76388132,0.00015616,2]
[333931587,1722633049048,-500.0,0.00015616,2]
[333931588,1722633049058,-500.0,0.00015616,2]
[333931589,1722633049067,-636.06018327,0.00015616,2]
[333931590,1722633049079,-500.0,0.00015616,2]
[333931591,1722633049089,-584.1,0.00015616,2]
[333931592,1722633049099,-500.0,0.00015616,2]
[333931593,1722633049108,-500.0,0.00015616,2]
[333931594,1722633049118,-477.59589182,0.00015616,2]
[333931595,1722633049130,-500.0,0.00015616,2]
[333931596,1722633049141,-725.53,0.00015616,2]
[333931597,1722633049151,-500.0,0.00015616,2]
[333931598,1722633049161,-214.80063749,0.00015616,2]
[333931599,1722633049170,-500.0,0.00015616,2]
[333931600,1722633049180,-3453.04,0.00015616,2]
[333931601,1722633049190,-1646.77,0.00015616,2]
[333931602,1722633049201,-151.0,0.00015616,2]
[333931603,1722633049211,-500.0,0.00015616,2]
[333931604,1722633049220,-579.57,0.00015616,2]
[333931605,1722633049229,-582.4,0.00015616,2]
[333931606,1722633049239,-500.0,0.00015616,2]
[333931607,1722633049254,-528.32,0.00015616,2]
[333931608,1722633049264,-835.9,0.00015616,2]
[333931609,1722633049274,-585.79,0.00015616,2]
[333931610,1722633049283,-1122.36736154,0.00015616,2]
[333931611,1722633049390,-814.473957,0.00015342,2]
[333931612,1722633049400,-716.16263846,0.00015616,2]
[333931613,1722633049409,-542.71692754,0.00015616,2]
[333931614,1722633049434,-1247.18,0.00015616,2]
[333931615,1722633049446,-544.22719048,0.00015616,2]
[333931616,1722633049593,-500.0,0.00013698,2]
[333931617,1722633049603,-500.0,0.00013698,2]
[333931618,1722633049613,-500.0,0.00013698,2]
[333931619,1722633049623,-500.0,0.00013698,2]
[333931620,1722633049632,-500.0,0.00013972,2]
[333931621,1722633049642,-814.473957,0.00015342,2]
[333931622,1722633049652,-48.51588198,0.00015616,2]
[333931623,1722633049662,-500.0,0.00015616,2]
[333931624,1722633049673,-500.0,0.00015616,2]
[333931625,1722633049683,-500.0,0.00015616,2]
[333931626,1722633049693,-500.0,0.00015616,2]
[333931627,1722633049702,-898.97,0.00015616,2]
[333931628,1722633049711,-500.0,0.00015616,2]
[333931629,1722633049721,-523.51,0.00015616,2]
[333931630,1722633049731,-500.0,0.00015616,2]
[333931631,1722633049741,-500.0,0.00015616,2]
[333931632,1722633049752,-552.87,0.00015616,2]
[333931633,1722633049763,-1426.15,0.00015616,2]
[333931634,1722633049772,-561.77,0.00015616,2]
[333931635,1722633049782,-1079.83,0.00015616,2]
[333931636,1722633049791,-500.0,0.00015616,2]
[333931637,1722633049801,-166.32,0.00015616,2]
[333931638,1722633049811,-411.99976102,0.00015616,2]
[333931639,1722633049824,-88.00023898,0.00015616,2]
[333931640,1722633049835,-500.0,0.00015616,2]
[333931641,1722633049844,-36.42811087,0.00015616,2]
[333931642,1722633049856,-463.57188913,0.00015616,2]
[333931643,1722633049866,-500.0,0.00015616,2]
[333931644,1722633049877,-2704.57,0.00015616,2]
[333931645,1722633049888,-809.4,0.00015616,2]
[333931646,1722633049898,-685.56,0.00015616,2]
[333931647,1722633049908,-530.18130292,0.00015616,2]
[333931678,1722633553082,224.11,0.00017814,120]
[333931679,1722633636236,287.72396894,0.0001,2]
[333931682,1722633731230,287.72396894,0.0001,2]
[333931689,1722633751195,3038.0,0.00025,60]
[333931695,1722633804274,727.403836,9.999e-05,2]
[333931696,1722633830243,287.72396894,0.0001,2]
[333931700,1722633901336,727.403836,9.999e-05,2]
[333931703,1722633931398,727.403836,9.999e-05,2]
[333931704,1722633934132,154.75,0.00027,120]
[333931717,1722633985770,287.72396894,0.0001,2]
[333931718,1722633993774,183.07617468,9.999e-05,2]
[333931721,1722634029495,341.99046528,9.999e-05,2]
[333931728,1722634035305,727.403836,9.999e-05,2]
[333931738,1722634066015,154.77557542,9.999e-05,2]
[333931748,1722634096743,183.07617468,9.999e-05,2]
[333931749,1722634118869,726.7717719,9.999e-05,2]
[333931750,1722634126775,183.07617468,9.999e-05,2]
[333931753,1722634152015,154.77560627,9.999e-05,2]
[333931754,1722634164499,341.99046528,9.999e-05,2]
[333931757,1722634190779,287.72396894,0.0001,2]
[333931812,1722634232637,-171.09,0.00010959,2]
[333931814,1722634232647,-855.45,0.00010959,2]
[333931815,1722634232657,-599.99866433,0.00011789,2]
[333931825,1722634232754,-3172.33182946,0.00011789,2]
[333931828,1722634232764,-300.0,0.00011889,2]
[333931831,1722634232782,-300.0,0.00011889,2]
[333931833,1722634232792,-24900.0,0.0001189,2]
[333931835,1722634232804,-250.0,0.00011938,2]
[333931837,1722634232814,-250.0,0.0001197,2]
[333931839,1722634232824,-250.0,0.00012003,2]
[333931841,1722634232833,-250.0,0.00012036,2]
[333931843,1722634232844,-250.0,0.00012069,2]
[333931845,1722634232854,-250.0,0.00012101,2]
[333931847,1722634232864,-154.77557542,0.00012119,2]
[333931849,1722634232873,-312.30791651,0.0001212,2]
[333931851,1722634232883,-250.0,0.00012134,2]
[333931853,1722634232893,-250.0,0.00012167,2]
[333931855,1722634232902,-250.0,0.00012199,2]
[333931857,1722634232912,-250.0,0.00012232,2]
[333931858,1722634232921,-250.0,0.00012265,2]
[333931860,1722634232932,-250.0,0.00012298,2]
[333931863,1722634232942,-250.0,0.0001233,2]
[333931865,1722634232952,-250.0,0.00012363,2]
[333931866,1722634232962,-250.0,0.00012396,2]
[333931868,1722634232972,-250.0,0.00012429,2]
[333931870,1722634232981,-250.0,0.00012461,2]
[333931872,1722634232991,-250.0,0.00012494,2]
[333931874,1722634233001,-250.0,0.00012527,2]
[333931876,1722634233012,-250.0,0.0001256,2]
[333931878,1722634233023,-2795.94237496,0.000129,2]
[333931880,1722634233039,-169.076039,0.00012986,2]
[333931882,1722634233049,-64.66626465,0.00013053,2]
[333931890,1722634233371,209.14855116,9.999e-05,2]
[333931892,1722634234310,183.07617468,9.999e-05,2]
[333931897,1722634238862,-225.0240693,0.00012121,2]
[333931899,1722634238873,-93.33373535,0.00013053,2]
[333931901,1722634238885,-420.0,0.00013078,2]
[333931903,1722634238896,-2107.31786979,0.00013688,2]
[333931907,1722634238913,-17384.360171,0.00013688,2]
[333931909,1722634238927,-5730.0,0.00013688,2]
[333931911,1722634238943,-1314.4,0.00013688,2]
[333931913,1722634238961,-14241.40660371,0.00013688,2]
[333931915,1722634238971,-1381.49,0.00013697,2]
[333931917,1722634238983,-577.08806387,0.00013698,2]
[333931919,1722634238993,-500.0,0.00013698,2]
[333931921,1722634239004,-500.0,0.00013698,2]
[333931922,1722634239015,-500.0,0.00013698,2]
[333931924,1722634239030,-500.0,0.00013698,2]
[333931926,1722634239044,-500.0,0.00013698,2]
[333931928,1722634239054,-500.0,0.00013698,2]
[333931930,1722634239067,-500.0,0.00013698,2]
[333931931,1722634239077,-500.0,0.00013698,2]
[333931933,1722634239087,-500.0,0.00013698,2]
[333931935,1722634239097,-500.0,0.00013698,2]
[333931937,1722634239107,-500.0,0.00013698,2]
[333931938,1722634239117,-501.77585729,0.00013698,2]
[333931940,1722634239127,-511.45259437,0.00013698,2]
[333931942,1722634239136,-500.0,0.00013698,2]
[333931943,1722634239149,-500.0,0.00013698,2]
[333931945,1722634239160,-500.0,0.00013698,2]
[333931947,1722634239171,-500.0,0.00013698,2]
[333931949,1722634239181,-500.0,0.00013698,2]
[333931950,1722634239191,-505.12737999,0.00013698,2]
[333931952,1722634239201,-500.0,0.00013698,2]
[333931954,1722634239212,-500.0,0.00013698,2]
[333931956,1722634239223,-500.0,0.00013698,2]
[333931958,1722634239233,-500.0,0.00013698,2]
[333931960,1722634239247,-500.0,0.00013698,2]
[333931961,1722634239257,-500.0,0.00013698,2]
[333931963,1722634239267,-500.0,0.00013698,2]
[333931965,1722634239284,-500.0,0.00013698,2]
[333931967,1722634239294,-500.0,0.00013698,2]
[333931968,1722634239304,-500.0,0.00013698,2]
[333931970,1722634239315,-500.0,0.00013698,2]
[333931971,1722634239326,-500.0,0.00013698,2]
[333931972,1722634239336,-500.0,0.00013698,2]
[333931973,1722634239346,-500.0,0.00013698,2]
[333931974,1722634239356,-500.0,0.00013698,2]
[333931975,1722634239366,-500.0,0.00013698,2]
[333931976,1722634239376,-500.0,0.00013698,2]
[333931977,1722634239387,-500.0,0.00013698,2]
[333931978,1722634239397,-528.6,0.00013698,2]
[333931979,1722634239407,-500.0,0.00013698,2]
[333931980,1722634239416,-500.0,0.00013698,2]
[333931981,1722634239428,-500.0,0.00013698,2]
[333931982,1722634239438,-500.0,0.00013698,2]
[333931983,1722634239448,-500.0,0.00013698,2]
[333931984,1722634239460,-656.97,0.00013698,2]
[333931985,1722634239471,-500.0,0.00013698,2]
[333931986,1722634239481,-500.0,0.00013698,2]
[333931987,1722634239491,-500.0,0.00013698,2]
[333931988,1722634239615,-500.0,0.00013698,2]
[333931989,1722634239625,-500.0,0.00013698,2]
[333931990,1722634239635,-500.0,0.00013698,2]
[333931991,1722634239645,-500.0,0.00013698,2]
[333931993,1722634239655,-500.0,0.00013698,2]
[333931995,1722634239665,-500.0,0.00013698,2]
[333931997,1722634239675,-500.0,0.00013698,2]
[333931998,1722634239684,-500.0,0.00013698,2]
[333932000,1722634239694,-500.0,0.00013698,2]
[333932002,1722634239706,-500.0,0.00013698,2]
[333932003,1722634239716,-250.5665561,0.00013698,2]
[333932004,1722634239726,-500.0,0.00013698,2]
[333932005,1722634239736,-500.0,0.00013698,2]
[333932006,1722634239745,-528.39673855,0.00013698,2]
[333932007,1722634239756,-500.0,0.00013698,2]
[333932008,1722634239766,-500.0,0.00013698,2]
[333932009,1722634239783,-500.0,0.00013698,2]
[333932010,1722634239794,-500.0,0.00013698,2]
[333932011,1722634239803,-500.0,0.00013698,2]
[333932012,1722634239813,-500.0,0.00013698,2]
[333932013,1722634239823,-500.0,0.00013698,2]
[333932014,1722634239834,-500.0,0.00013698,2]
[333932015,1722634239844,-500.0,0.00013698,2]
[333932017,1722634239855,-500.0,0.00013698,2]
[333932018,1722634239866,-500.0,0.00013698,2]
[333932019,1722634239877,-165.21775422,0.00013698,2]
[333932020,1722634239887,-500.0,0.00013698,2]
[333932022,1722634239896,-500.0,0.00013698,2]
[333932023,1722634239906,-500.0,0.00013698,2]
[333932024,1722634239916,-674.5,0.00013698,2]
[333932026,1722634239926,-500.0,0.00013698,2]
[333932027,1722634239935,-500.0,0.00013698,2]
[333932028,1722634239945,-500.0,0.00013698,2]
[333932029,1722634239955,-500.0,0.00013698,2]
[333932030,1722634239965,-500.0,0.00013698,2]
[333932031,1722634239974,-500.0,0.00013698,2]
[333932032,1722634239986,-500.0,0.00013698,2]
[333932033,1722634239996,-216.54262552,0.00013698,2]
[333932034,1722634240007,-175.34251172,0.00013698,2]
[333932035,1722634240017,-500.0,0.00013698,2]
[333932036,1722634240029,-500.0,0.00013698,2]
[333932037,1722634240038,-500.0,0.00013698,2]
[333932038,1722634240048,-500.0,0.00013698,2]
[333932039,1722634240058,-500.0,0.00013698,2]
[333932040,1722634240068,-500.0,0.00013698,2]
[333932041,1722634240077,-500.0,0.00013698,2]
[333932042,1722634240086,-707.39,0.00013698,2]
[333932043,1722634240096,-500.0,0.00013698,2]
[333932044,1722634240106,-3342.56,0.00013698,2]
[333932045,1722634240115,-500.0,0.00013698,2]
[333932046,1722634240126,-500.0,0.00013698,2]
[333932047,1722634240136,-500.0,0.00013698,2]
[333932048,1722634240145,-500.0,0.00013698,2]
[333932049,1722634240155,-500.0,0.00013698,2]
[333932050,1722634240166,-1440.92,0.00013698,2]
[333932051,1722634240176,-500.0,0.00013698,2]
[333932052,1722634240185,-500.0,0.00013698,2]
[333932053,1722634240196,-500.0,0.00013698,2]
[333932054,1722634240205,-500.0,0.00013698,2]
[333932055,1722634240215,-500.0,0.00013698,2]
[333932056,1722634240225,-500.0,0.00013698,2]
[333932057,1722634240234,-500.0,0.00013698,2]
[333932058,1722634240244,-500.0,0.00013698,2]
[333932059,1722634240253,-500.0,0.00013698,2]
[333932060,1722634240263,-500.0,0.00013698,2]
[333932061,1722634240273,-559.16,0.00013698,2]
[333932062,1722634240289,-500.0,0.00013698,2]
[333932063,1722634240299,-500.0,0.00013698,2]
[333932064,1722634240308,-500.0,0.00013698,2]
[333932065,1722634240318,-500.0,0.00013698,2]
[333932066,1722634240328,-731.41,0.00013698,2]
[333932067,1722634240338,-503.71713332,0.00013698,2]
[333932068,1722634240348,-500.0,0.00013698,2]
[333932069,1722634240357,-500.0,0.00013698,2]
[333932070,1722634240367,-500.0,0.00013698,2]
[333932071,1722634240378,-536.64,0.00013698,2]
[333932072,1722634240389,-500.0,0.00013698,2]
[333932073,1722634240399,-500.0,0.00013698,2]
[333932074,1722634240409,-500.0,0.00013698,2]
[333932075,1722634240420,-500.0,0.00013698,2]
[333932076,1722634240434,-500.0,0.00013698,2]
[333932077,1722634240444,-500.0,0.00013698,2]
[333932078,1722634240454,-500.0,0.00013698,2]
[333932079,1722634240464,-1188.46,0.00013698,2]
[333932080,1722634240475,-500.0,0.00013698,2]
[333932081,1722634240484,-500.0,0.00013698,2]
[333932082,1722634240494,-297.62054279,0.00013698,2]
[333932083,1722634240507,-500.0,0.00013698,2]
[333932084,1722634240518,-391.39822416,0.00013698,2]
[333932085,1722634240531,-500.0,0.00013698,2]
[333932086,1722634240540,-500.0,0.00013698,2]
[333932087,1722634240549,-1578.88,0.00013698,2]
[333932088,1722634240559,-500.0,0.00013698,2]
[333932089,1722634240568,-833.64,0.00013698,2]
[333932090,1722634240578,-500.0,0.00013698,2]
[333932091,1722634240588,-500.0,0.00013698,2]
[333932092,1722634240597,-500.0,0.00013698,2]
[333932093,1722634240606,-500.0,0.00013698,2]
[333932094,1722634240616,-500.0,0.00013698,2]
[333932095,1722634240625,-500.0,0.00013698,2]
[333932096,1722634240636,-500.0,0.00013698,2]
[333932097,1722634240646,-500.0,0.00013698,2]
[333932098,1722634240657,-500.0,0.00013698,2]
[333932099,1722634240668,-500.0,0.00013698,2]
[333932100,1722634240678,-500.0,0.00013698,2]
[333932101,1722634240689,-500.0,0.00013698,2]
[333932102,1722634240700,-500.0,0.00013698,2]
[333932103,1722634240709,-500.0,0.00013698,2]
[333932104,1722634240719,-500.0,0.00013698,2]
[333932105,1722634240730,-500.0,0.00013698,2]
[333932106,1722634240740,-189.08406,0.00013698,2]
[333932107,1722634240749,-500.0,0.00013698,2]
[333932108,1722634240759,-500.0,0.00013698,2]
[333932109,1722634240771,-500.0,0.00013698,2]
[333932110,1722634240789,-1002.94,0.00013698,2]
[333932111,1722634240801,-281.42848548,0.00013698,2]
[333932112,1722634240810,-521.98,0.00013698,2]
[333932113,1722634240819,-500.0,0.00013698,2]
[333932114,1722634240828,-500.0,0.00013698,2]
[333932115,1722634240839,-500.0,0.00013698,2]
[333932116,1722634240848,-500.0,0.00013698,2]
[333932117,1722634240857,-500.0,0.00013698,2]
[333932118,1722634240867,-500.0,0.00013698,2]
[333932119,1722634240876,-500.0,0.00013698,2]
[333932120,1722634240887,-500.0,0.00013698,2]
[333932121,1722634240897,-671.57,0.00013698,2]
[333932122,1722634240907,-500.0,0.00013698,2]
[333932123,1722634240917,-527.40530128,0.00013698,2]
[333932124,1722634240927,-560.13,0.00013698,2]
[333932125,1722634240936,-500.0,0.00013698,2]
[333932126,1722634240946,-500.0,0.00013698,2]
[333932127,1722634240955,-500.0,0.00013698,2]
[333932128,1722634240966,-500.0,0.00013698,2]
[333932129,1722634240976,-500.0,0.00013698,2]
[333932130,1722634240985,-500.0,0.00013698,2]
[333932131,1722634240995,-500.0,0.00013698,2]
[333932132,1722634241005,-500.0,0.00013698,2]
[333932133,1722634241014,-500.0,0.00013698,2]
[333932134,1722634241024,-500.0,0.00013698,2]
[333932135,1722634241033,-500.0,0.00013698,2]
[333932136,1722634241043,-500.0,0.00013698,2]
[333932137,1722634241053,-500.0,0.00013698,2]
[333932138,1722634241064,-685.27,0.00013698,2]
[333932139,1722634241074,-653.26,0.00013698,2]
[333932140,1722634241083,-2615.77,0.00013698,2]
[333932141,1722634241093,-500.0,0.00013698,2]
[333932142,1722634241103,-500.0,0.00013698,2]
[333932143,1722634241113,-500.0,0.00013698,2]
[333932144,1722634241122,-500.0,0.00013698,2]
[333932145,1722634241132,-500.0,0.00013698,2]
[333932146,1722634241142,-500.0,0.00013698,2]
[333932147,1722634241151,-500.0,0.00013698,2]
[333932148,1722634241161,-561.84,0.00013698,2]
[333932149,1722634241171,-500.0,0.00013698,2]
[333932150,1722634241181,-561.84,0.00013698,2]
[333932151,1722634241191,-561.84,0.00013698,2]
[333932153,1722634241200,-500.0,0.00013698,2]
[333932155,1722634241210,-500.0,0.00013698,2]
[333932157,1722634241220,-844.72,0.00013698,2]
[333932159,1722634241230,-500.0,0.00013698,2]
[333932160,1722634241239,-954.1,0.00013698,2]
[333932162,1722634241249,-500.0,0.00013698,2]
[333932164,1722634241259,-583.0711377,0.00013698,2]
[333932166,1722634241269,-415.43050057,0.00013698,2]
[333932167,1722634241279,-790.16,0.00013698,2]
[333932168,1722634241289,-500.0,0.00013698,2]
[333932169,1722634241299,-458.75395012,0.00013698,2]
[333932170,1722634241308,-500.0,0.00013698,2]
[333932171,1722634241318,-500.0,0.00013698,2]
[333932172,1722634241328,-500.0,0.00013698,2]
[333932173,1722634241337,-500.0,0.00013698,2]
[333932174,1722634241347,-302.94005181,0.00013698,2]
[333932175,1722634241356,-500.0,0.00013698,2]
[333932176,1722634241368,-500.0,0.00013698,2]
[333932177,1722634241378,-424.576192,0.00013699,2]
[333932178,1722634241387,-150.112233,0.000137,2]
[333932179,1722634241397,-445.5,0.00013871,2]
[333932180,1722634241407,-88888.0,0.00013872,2]
[333932181,1722634241416,-150.112233,0.000139,2]
[333932182,1722634241428,-40777.4846445,0.00013962,2]
[333932183,1722634241438,-1381.49,0.00013971,2]
[333932184,1722634241447,-525.05,0.00013971,2]
[333932185,1722634241458,-561.84,0.00013971,2]
[333932186,1722634241470,-561.84,0.00013971,2]
[333932187,1722634241480,-2301.46,0.00013971,2]
[333932189,1722634241491,-500.0,0.00013971,2]
[333932190,1722634241501,-314.9373224,0.00013971,2]
[333932191,1722634241511,-500.0,0.00013971,2]
[333932193,1722634241521,-500.0,0.00013971,2]
[333932195,1722634241531,-500.0,0.00013971,2]
[333932197,1722634241541,-500.0,0.00013971,2]
[333932199,1722634241551,-500.0,0.00013971,2]
[333932201,1722634241560,-500.0,0.00013971,2]
[333932202,1722634241570,-500.0,0.00013971,2]
[333932204,1722634241579,-500.0,0.00013971,2]
[333932206,1722634241589,-500.0,0.00013972,2]
[333932208,1722634241599,-500.0,0.00013972,2]
[333932210,1722634241609,-500.0,0.00013972,2]
[333932212,1722634241619,-500.0,0.00013972,2]
[333932213,1722634241629,-500.0,0.00013972,2]
[333932215,1722634241639,-500.0,0.00013972,2]
[333932217,1722634241649,-500.0,0.00013972,2]
[333932219,1722634241659,-500.0,0.00013972,2]
[333932220,1722634241669,-203.765182,0.00013972,2]
[333932222,1722634241678,-500.0,0.00013972,2]
[333932224,1722634241688,-500.0,0.00013972,2]
[333932225,1722634241697,-500.0,0.00013972,2]
[333932227,1722634241707,-500.0,0.00013972,2]
[333932229,1722634241716,-500.0,0.00013972,2]
[333932231,1722634241725,-500.0,0.00013972,2]
[333932232,1722634241735,-500.0,0.00013972,2]
[333932234,1722634241744,-500.0,0.00013972,2]
[333932236,1722634241753,-500.0,0.00013972,2]
[333932237,1722634241763,-500.0,0.00013972,2]
[333932244,1722634241866,-500.0,0.00013972,2]
[333932246,1722634241877,-500.0,0.00013972,2]
[333932247,1722634241887,-500.0,0.00013972,2]
[333932249,1722634241897,-500.0,0.00013972,2]
[333932251,1722634241906,-500.0,0.00013972,2]
[333932252,1722634241915,-500.0,0.00013972,2]
[333932254,1722634241924,-500.0,0.00013972,2]
[333932256,1722634241935,-500.0,0.00013972,2]
[333932257,1722634241946,-528.6,0.00013972,2]
[333932259,1722634241957,-500.0,0.00013972,2]
[333932261,1722634241966,-500.0,0.00013972,2]
[333932263,1722634241976,-500.0,0.00013972,2]
[333932264,1722634241986,-500.0,0.00013972,2]
[333932266,1722634241995,-500.0,0.00013972,2]
[333932268,1722634242005,-656.97,0.00013972,2]
[333932269,1722634242014,-500.0,0.00013972,2]
[333932271,1722634242023,-500.0,0.00013972,2]
[333932273,1722634242033,-500.0,0.00013972,2]
[333932274,1722634242043,-443.4436512,0.00013972,2]
[333932275,1722634242053,-500.0,0.00013972,2]
[333932276,1722634242062,-500.0,0.00013972,2]
[333932277,1722634242072,-500.0,0.00013972,2]
[333932278,1722634242082,-500.0,0.00013972,2]
[333932279,1722634242091,-500.0,0.00013972,2]
[333932280,1722634242101,-500.0,0.00013972,2]
[333932281,1722634242110,-500.0,0.00013972,2]
[333932282,1722634242119,-500.0,0.00013972,2]
[333932283,1722634242129,-500.0,0.00013972,2]
[333932284,1722634242138,-500.0,0.00013972,2]
[333932285,1722634242149,-500.0,0.00013972,2]
[333932286,1722634242158,-500.0,0.00013972,2]
[333932287,1722634242168,-500.0,0.00013972,2]
[333932288,1722634242178,-500.0,0.00013972,2]
[333932289,1722634242188,-674.5,0.00013972,2]
[333932290,1722634242198,-500.0,0.00013972,2]
[333932291,1722634242208,-500.0,0.00013972,2]
[333932292,1722634242218,-500.0,0.00013972,2]
[333932293,1722634242228,-500.0,0.00013972,2]